[Event "Reykjavik Open 2022"]
[Site "Reykjavik"]
[Date "2022.04.10"]
[Round "6.3"]
[White "Hjartarson, Johann"]
[Black "Niemann, Hans Moke"]
[Result "1-0"]
[ECO "A20"]
[WhiteElo "2470"]
[BlackElo "2642"]
[Annotator "TA"]
[PlyCount "53"]
[EventDate "2022.04.06"]
[EventCountry "ISL"]
[SourceTitle "playchess.com"]
[Source "ChessBase"]
[SourceQuality "1"]
[TimeControl "40/5400+30:1800+30"]

{[%evp 9,53,9,20,14,14,15,16,26,0,-9,-8,-7,-11,-13,0,0,0,2,0,10,22,-27,-24,-10,-14,-14,-16,-57,-40,-56,-17,-43,76,72,156,154,217,173,547,608,521,264,436,435,704,717]} 1. c4 {[%emt 0:00:02]} e5 {[%emt 0:04:47][%cal Be7e5,Be5e4][%mdl 32]} 2. g3 {[%emt 0:00:17]} c6 {[%emt 0:01:16]} 3. d4 {[%emt 0:01:35]} e4 {[%emt 0:03:03]} 4. Nc3 {[%emt 0:02:07]} d5 {[%emt 0:04:35]} 5. Nh3 {[%emt 0:03:34][%cal Bg1h3,Bh3f4,Bf4e2,Be2g3][%mdl 32]} h6 {[%emt 0:16:50]} 6. cxd5 {[%emt 0:02:09] A20: English Opening: 1...e5.} cxd5 {[%emt 0:00:14]} 7. Qb3 {[%emt 0:05:21] With the idea Nf4.} Nf6 {[%emt 0:00:14]} 8. Nf4 {[%emt 0:00:37][%cal Rf4d5] The position is equal.} Nc6 {[%emt 0:00:07]} 9. e3 {[%emt 0:00:24][%cal Rf4d5]} Bb4 {[%emt 0:01:11]} 10. Bd2 {[%emt 0:04:21][%cal Rf4d5]} Bxc3 {[%emt 0:00:39]} 11. Bxc3 {[%emt 0:00:12] [#]} g5 $146 {[%emt 0:00:09]} ({Predecessor:} 11... g6 12. h4 b6 13. Rc1 Bb7 14. Bb5 Rc8 15. g4 a6 16. Be2 b5 17. Kd2 Ne7 18. a4 O-O 19. axb5 Qb6 20. Bb4 Rfe8 21. Qa3 {1-0 (21) Walsh,P (1875)-Mann,W ICCF email 2019}) 12. Ne2 {[%emt 0:01:01]} O-O {[%emt 0:00:43]} 13. h3 {[%emt 0:09:33]} Rb8 {[%emt 0:13:49]} 14. g4 {[%emt 0:04:16]} b5 {[%emt 0:00:47][%cal Bb7b5,Bb5b4][%mdl 32]} 15. Qd1 {[%emt 0:00:46]} (15. Ng3 {is superior.}) 15... b4 {[%emt 0:00:54]} 16. Bd2 {[%emt 0:00:15]} Ne7 {[%emt 0:00:25][%cal Bc6e7,Be7g6,Bg6h4][%mdl 32]} 17. Ng3 {[%emt 0:05:32]} Ng6 {[%emt 0:00:28]} 18. Rc1 {[%emt 0:02:43]} Nh4 {[%emt 0:02:09] ...Nf3+ is the strong threat.} 19. Be2 {[%emt 0:00:13] Prevents Nf3+.} Qb6 {[%emt 0:00:06]} 20. Rc5 {[%emt 0:03:10]} Ba6 {[%emt 0:00:46] [#]} (20... Bd7 $15 {keeps the upper hand.}) 21. Qa4 $1 $16 {[%emt 0:00:33]} Bxe2 {[%emt 0:02:43]} (21... Bd3 $142) 22. Kxe2 {[%emt 0:00:20]} Qe6 {[%emt 0:00:16]} (22... Rfc8 $16 {keeps fighting.}) 23. Rhc1 {[%emt 0:04:03] Black must now prevent Rc6.} Rb6 $2 {[%emt 0:03:42]} (23... Rfc8 24. Kd1 Rxc5 25. Rxc5 Kg7 26. Bxb4 (26. Qxa7 Qb6 $16) 26... Rb6) 24. Rc6 $18 {[%emt 0:01:38]} Qd7 {[%emt 0:02:24]} 25. b3 {[%emt 0:01:56]} Rxc6 $2 {[%emt 0:06:31] [#]} (25... Qb7 26. Rc7 Qb8 27. Qxa7 Kg7) 26. Rxc6 {[%emt 0:00:43]} Qd8 {[%emt 0:01:50]} (26... Rc8 $142 27. Rxf6 Qc7) 27. Bxb4 {[%emt 0:00:49] Weighted Error Value: White=0.22 (precise) /Black=0.50} 1-0

[Event "Reykjavik Open 2022"]
[Site "Reykjavik"]
[Date "2022.04.10"]
[Round "6.4"]
[White "Praggnanandhaa R"]
[Black "Mishra, Abhimanyu"]
[Result "1-0"]
[ECO "D30"]
[WhiteElo "2612"]
[BlackElo "2505"]
[Annotator "TA"]
[PlyCount "157"]
[EventDate "2022.04.06"]
[EventCountry "ISL"]
[SourceTitle "playchess.com"]
[Source "ChessBase"]
[SourceQuality "1"]
[TimeControl "40/5400+30:1800+30"]

{[%evp 13,157,20,15,23,14,15,14,24,19,16,17,24,24,20,23,25,14,23,18,-12,0,0,111,112,110,119,161,145,145,121,113,114,117,122,119,119,122,86,101,71,129,118,116,93,94,87,103,103,103,102,126,105,126,127,164,164,185,195,203,177,408,408,407,380,322,220,400,392,566,566,544,480,638,635,633,634,669,669,654,633,672,658,927,867,1215,1172,1215,1215,1215,1215,1215,1212,1190,1172,1172,1164,1143,0,1135,1135,1141,1135,847,545,1133,737,29960,29960,29960,29960,29965,29966,29965,29966,29967,29968,29967,29968,29963,29965,29976,29977,29977,29975,29978,29978,29978,29977,29985,0,29978,29979,29981,29974,29974,29974,29973,29964,29974,29973,29979,29980,29998,29998,29998,29999]} 1. d4 {[%emt 0:00:51]} d5 {[%emt 0:00:08]} 2. c4 {[%emt 0:00:29]} c6 {[%emt 0:00:06]} 3. Nf3 {[%emt 0:00:05]} Nf6 {[%emt 0:00:07]} 4. e3 {[%emt 0:00:04]} e6 {[%emt 0:00:10]} 5. Bd3 {[%emt 0:00:06]} dxc4 {[%emt 0:01:14]} 6. Bxc4 {[%emt 0:00:03]} Nbd7 {[%emt 0:00:12]} 7. O-O {[%emt 0:00:10]} Bd6 {[%emt 0:00:35] The main line 7...Bd6 scores better than 7...b5.} 8. Qc2 {[%emt 0:00:08] D30: Queen's Gambit Declined: Systems without Nc3.} O-O {[%emt 0:01:34]} 9. e4 {[%emt 0:00:09]} e5 $1 {[%emt 0:00:14]} 10. Be3 {[%emt 0:00:08] The position is equal.} Ng4 {[%emt 0:04:53]} 11. Bg5 {[%emt 0:00:30]} Qc7 {[%emt 0:00:14] Threatens to win with ...exd4.} 12. h3 {[%emt 0:00:54]} h6 {[%emt 0:02:22]} 13. Bh4 {[%emt 0:01:07]} Ngf6 {[%emt 0:00:09]} 14. Nc3 {[%emt 0:02:07]} Nh5 {[%emt 0:01:23]} 15. Rad1 {[%emt 0:02:29] [#]} exd4 $146 {[%emt 0:01:49]} ({Predecessor:} 15... b5 16. Be2 Nf4 17. Bg3 exd4 18. Nxd4 b4 19. Nf5 Be5 20. Na4 Nxe2+ 21. Qxe2 Bxg3 22. Nxg3 {½-½ (75) Zajontz,R (2500)-Mendl,M (2537) ICCF email 2020}) 16. Rxd4 {[%emt 0:19:29]} (16. Nxd4 $5 {[%cal Rd4f5]} g5 17. Bg3 Nxg3 18. fxg3 $11) 16... Ne5 {[%emt 0:14:38] ...Nxf3+ is the strong threat.} 17. Qd1 {[%emt 0:06:58]} Nxc4 {[%emt 0:05:56]} (17... Bc5 $11 {keeps the balance.} 18. Nxe5 Qxe5) 18. Rxc4 $16 {[%emt 0:00:10][%cal Oc3b5]} Be6 {[%emt 0:16:15] [#]} 19. Nb5 $1 {[%emt 0:01:59][%mdl 512]} Bxc4 {[%emt 0:02:30]} (19... Bh2+ 20. Nxh2) 20. Nxc7 {[%emt 0:00:03]} Bxc7 {[%emt 0:00:11] This bishop pair is nice.} 21. Qd7 {[%emt 0:17:33]} Rac8 {[%emt 0:06:52]} 22. Re1 {[%emt 0:06:39]} Nf4 {[%emt 0:03:04]} 23. b3 {[%emt 0:05:35]} Be6 {[%emt 0:01:01]} 24. Qd2 {[%emt 0:05:05]} Ng6 {[%emt 0:03:03]} 25. Qe3 {[%emt 0:02:25]} Bb6 {[%emt 0:06:04]} 26. Qc3 {[%emt 0:00:21]} Nxh4 {[%emt 0:04:35]} (26... c5 $142) 27. Nxh4 {[%emt 0:00:05]} Rcd8 {[%emt 0:01:28]} 28. Nf3 {[%emt 0:02:52][%cal Bh4f3,Bf3d4,Bd4f5][%mdl 32]} Rfe8 {[%emt 0:02:31]} 29. a4 {[%emt 0:02:12]} a5 {[%emt 0:06:49]} 30. b4 {[%emt 0:03:09]} Ra8 {[%emt 0:00:19]} 31. Rb1 {[%emt 0:01:11]} axb4 {[%emt 0:01:05]} 32. Qxb4 {[%emt 0:00:04]} Bc7 {[%emt 0:00:53] [#]} 33. Nd4 $1 {[%emt 0:03:12]} ({Much weaker is} 33. Qxb7 $6 Reb8 34. Qxc7 Rxb1+ 35. Kh2 Rxa4 $11) 33... Bc8 {[%emt 0:04:04] [#]} 34. Nf5 $1 {[%emt 0:02:57]} Kh7 {[%emt 0:07:15]} 35. Qc4 {[%emt 0:02:46]} Be6 {[%emt 0:00:57]} 36. Qc2 $40 {[%emt 0:04:12][%mdl 128] White goes for the king.} Rad8 $2 {[%emt 0:01:57]} (36... Bc8 {might work better.} 37. g3 Rb8) 37. Rxb7 $18 {[%emt 0:02:33]} Bxf5 {[%emt 0:00:34]} 38. Rxc7 {[%emt 0:00:06]} Bxe4 {[%emt 0:00:24]} 39. Qc5 {[%emt 0:02:40]} Bd5 {[%emt 0:00:52]} (39... Bg6 40. Rxc6 (40. Qxc6 Re1+ 41. Kh2 Rd2 $18) 40... Re1+ 41. Kh2 Re2) 40. Re7 {[%emt 0:00:00]} Rg8 {[%emt 0:00:00]} (40... Rxe7 {was worth a try.} 41. Qxe7 Ra8) 41. a5 {[%emt 0:07:42]} Ra8 {[%emt 0:05:34]} 42. Qa3 {[%emt 0:07:04]} Rgb8 {[%emt 0:02:39]} 43. a6 {[%emt 0:01:07]} Rb3 {[%emt 0:04:12]} 44. Qa1 {[%emt 0:01:17]} Rb6 {[%emt 0:09:36]} 45. a7 {[%emt 0:00:18]} Rb4 {[%emt 0:01:12]} 46. Rc7 {[%emt 0:02:38]} g6 {[%emt 0:02:02]} 47. f3 {[%emt 0:07:51]} h5 {[%emt 0:02:28]} 48. h4 {[%emt 0:03:09]} Rxh4 {[%emt 0:03:08]} 49. Qa6 {[%emt 0:00:50]} Rb4 {[%emt 0:02:08]} 50. Rc8 {[%emt 0:01:02]} Rxc8 {[%emt 0:01:02]} 51. Qxc8 {[%emt 0:00:02][%mdl 4096] Endgame KQ-KRB} c5 {[%emt 0:00:24]} 52. Qxc5 {[%emt 0:02:26]} Ra4 {[%emt 0:00:19]} 53. Qc7 {[%emt 0:01:20]} Ra2 {[%emt 0:00:46]} 54. Qd7 {[%emt 0:00:39]} Be6 {[%emt 0:00:46]} 55. Qc7 {[%emt 0:00:18]} Bd5 $1 {[%emt 0:00:13]} 56. Kh2 {[%emt 0:00:55]} Ra4 {[%emt 0:01:32]} 57. Kg3 {[%emt 0:00:33]} Kg7 {[%emt 0:00:42]} 58. Kf2 {[%emt 0:03:10]} Kh7 {[%emt 0:00:32]} 59. Ke3 {[%emt 0:00:31] White wants to mate with Qd7.} Be6 {[%emt 0:00:39] Against Qd7} 60. Qb7 {[%emt 0:00:30]} Bd5 {[%emt 0:00:14]} 61. Qd7 {[%emt 0:00:11]} Ra5 {[%emt 0:01:20]} 62. Kd4 {[%emt 0:00:19]} h4 {[%emt 0:00:57]} 63. Qc7 {[%emt 0:01:39]} Rb5 {[%emt 0:00:05]} 64. a8=Q {[%emt 0:00:42]} Bxa8 {[%emt 0:00:08]} 65. Qxf7+ {[%emt 0:00:02]} Kh6 {[%emt 0:00:22]} 66. Qf8+ {[%emt 0:00:05]} Kh5 {[%emt 0:00:49]} 67. Qxa8 {[%emt 0:00:13] KQ-KR} Rf5 {[%emt 0:00:35]} 68. Qh8+ {[%emt 0:00:32]} Kg5 {[%emt 0:00:02]} 69. Ke3 {[%emt 0:00:16]} Rf7 {[%emt 0:00:26]} 70. Qd8+ {[%emt 0:01:00]} Kh5 {[%emt 0:00:21]} 71. Qh8+ {[%emt 0:00:25]} Kg5 {[%emt 0:00:02]} 72. Kf2 {[%emt 0:00:04] White mates.} Rf4 {[%emt 0:01:18]} 73. Kg1 {[%emt 0:00:12]} Kf5 {[%emt 0:00:27]} 74. Qg7 {[%emt 0:01:09]} g5 {[%emt 0:00:50]} 75. Qf7+ {[%emt 0:00:06]} Ke5 {[%emt 0:00:09]} 76. Qg6 {[%emt 0:00:03]} Rf5 {[%emt 0:00:13]} 77. Kf2 {[%emt 0:00:18]} Kf4 {[%emt 0:00:26]} 78. Qd6+ {[%emt 0:00:04]} Re5 {[%emt 0:00:05]} 79. Qf6+ {[%emt 0:00:02] Weighted Error Value: White=0.23 (precise) /Black=0.45} 1-0

[Event "Reykjavik Open 2022"]
[Site "Reykjavik"]
[Date "2022.04.10"]
[Round "6.5"]
[White "Warmerdam, Max"]
[Black "Williams, Simon K"]
[Result "1-0"]
[ECO "A84"]
[WhiteElo "2607"]
[BlackElo "2464"]
[Annotator "TA"]
[PlyCount "87"]
[EventDate "2022.04.06"]
[EventCountry "ISL"]
[SourceTitle "playchess.com"]
[Source "ChessBase"]
[SourceQuality "1"]
[TimeControl "40/5400+30:1800+30"]

{[%evp 9,87,17,54,29,50,-12,38,28,76,56,77,93,98,89,118,125,142,137,181,187,234,137,144,146,137,118,126,118,112,111,118,118,122,66,64,79,80,71,74,73,87,87,87,87,87,48,87,87,235,260,175,197,176,178,182,188,181,194,234,244,29967,29968,29968,29969,29971,-367,29971,29973,29973,29974,29974,29975,29975,29976,29975,29973,29974,29975,6311,6207]} 1. d4 {[%emt 0:00:04]} e6 {[%emt 0:00:42]} 2. c4 {[%emt 0:00:06]} f5 {[%emt 0:01:56]} 3. g3 {[%emt 0:00:06]} Nf6 {[%emt 0:00:11]} 4. Nf3 {[%emt 0:00:06]} d5 {[%emt 0:04:35]} 5. Bf4 {[%emt 0:00:40]} Be7 {[%emt 0:01:30]} 6. Qc2 {[%emt 0:01:41] A84: Dutch Defence: 2 c4 Miscellaneous.} c6 {[%emt 0:01:10]} 7. Nc3 {[%emt 0:02:03]} (7. e3 $14) 7... O-O {[%emt 0:01:44]} (7... dxc4 $11 8. a4 Nd5) 8. e3 $14 {[%emt 0:00:27] [#] White is slightly better.} Na6 $146 {[%emt 0:11:35]} (8... b6 $11) ({Predecessor:} 8... Ne4 9. Bd3 Nd7 10. h4 Qa5 11. Ng5 Ndf6 12. f3 Nxc3 13. bxc3 h6 14. g4 dxc4 15. Bxc4 hxg5 16. hxg5 {1-0 (27) Witek,T (2120)-Moskwinski,T (2189) Warsaw 2006}) 9. Rc1 {[%emt 0:08:34]} Ne4 {[%emt 0:06:39]} 10. h4 {[%emt 0:00:56]} Bd7 {[%emt 0:17:49]} 11. Be2 {[%emt 0:05:23]} b5 {[%emt 0:13:56]} 12. c5 {[%emt 0:11:44]} Nc7 {[%emt 0:00:38][%cal Ba6c7,Bc7e8,Be8f6][%mdl 32]} 13. Ne5 {[%emt 0:01:45]} Ne8 {[%emt 0:03:28]} 14. a4 {[%emt 0:06:31][%cal Ra4b5]} a6 {[%emt 0:04:34]} (14... b4 $142) 15. Nxe4 {[%emt 0:10:49]} (15. Na2 $18) 15... dxe4 $16 {[%emt 0:02:23]} 16. Qb3 {[%emt 0:01:37]} Qc8 {[%emt 0:05:49]} 17. Ra1 {[%emt 0:00:55] axb5 is the strong threat. 0x0.00059bf61f76dp-1022s more active pieces.} Nf6 {[%emt 0:02:09]} 18. axb5 {[%emt 0:01:14]} cxb5 {[%emt 0:00:12]} 19. O-O {[%emt 0:06:14]} Bc6 {[%emt 0:00:53]} 20. Ra3 {[%emt 0:06:21]} Nd5 {[%emt 0:03:01]} 21. Rfa1 {[%emt 0:00:27]} ({White should try} 21. Bg5 $16) 21... Nxf4 $14 {[%emt 0:00:35]} 22. exf4 {[%emt 0:00:06][%cal Oa3a6] Strongly threatening Rxa6!} Bd5 {[%emt 0:00:03]} 23. Qc3 {[%emt 0:01:19]} Bf6 {[%emt 0:00:07]} 24. b4 {[%emt 0:01:30]} Bxe5 {[%emt 0:00:48]} 25. dxe5 {[%emt 0:00:03]} Rd8 {[%emt 0:00:41]} 26. Rd1 {[%emt 0:03:00]} Qc6 {[%emt 0:02:18]} 27. Rd4 {[%emt 0:00:15]} Rd7 {[%emt 0:01:40]} 28. Ra5 {[%emt 0:00:53] Black is now going downhill.} Rad8 {[%emt 0:02:08] [#]} (28... Rdd8 $16) 29. Qa1 $1 $18 {[%emt 0:04:45]} Bc4 {[%emt 0:04:29] [#]} 30. Rxa6 $1 {[%emt 0:02:07]} Qxa6 {[%emt 0:00:18]} 31. Qxa6 {[%emt 0:00:16] White wants to mate with Rxd7.} Rxd4 {[%emt 0:00:04]} 32. Bxc4 {[%emt 0:00:31]} bxc4 {[%emt 0:00:04]} 33. Qxe6+ {[%emt 0:16:19][%mdl 4096] Endgame KQ-KRR} Kh8 {[%emt 0:00:18] [#]} 34. Kg2 $1 {[%emt 0:01:12] Black must now prevent c6.} ({Don't go for} 34. Qxf5 $2 c3 35. Kh2 c2 $19) 34... Rd2 $2 {[%emt 0:02:55]} (34... c3 $18 35. Qb3 (35. Qxf5 $2 c2 $19) 35... e3 36. Qxc3 Rd3) 35. c6 {[%emt 0:04:08]} e3 {[%emt 0:04:14]} 36. c7 {[%emt 0:00:04]} (36. Qxc4 {is a self mate.} Rxf2+ 37. Kh3 Rdd2) 36... e2 {[%emt 0:00:09]} 37. cxd8=Q+ {[%emt 0:00:23]} Rxd8 {[%emt 0:00:06] KQ-KR} 38. Qb6 {[%emt 0:00:03][%cal Rb6d8]} Rc8 {[%emt 0:00:06]} 39. Qe3 {[%emt 0:00:06]} c3 {[%emt 0:00:20]} 40. e6 {[%emt 0:00:00]} c2 {[%emt 0:00:00]} 41. e7 {[%emt 0:00:14]} Re8 {[%emt 0:05:32]} 42. Kf3 {[%emt 0:00:14]} h6 {[%emt 0:00:04]} 43. Kxe2 {[%emt 0:00:05]} Rxe7 {[%emt 0:00:04] [#]} 44. Kd2 $1 {[%emt 0:00:04] Weighted Error Value: White=0.18 (very precise) /Black=0.30} 1-0

[Event "Reykjavik Open 2022"]
[Site "Reykjavik"]
[Date "2022.04.10"]
[Round "6.6"]
[White "Beerdsen, Thomas"]
[Black "Fier, Alexandr"]
[Result "1/2-1/2"]
[ECO "B88"]
[WhiteElo "2508"]
[BlackElo "2583"]
[Annotator "TA"]
[PlyCount "29"]
[EventDate "2022.04.06"]
[EventCountry "ISL"]
[SourceTitle "playchess.com"]
[Source "ChessBase"]
[SourceQuality "1"]
[TimeControl "40/5400+30:1800+30"]

{[%evp 14,29,0,0,0,0,0,0,0,0,0,0,12,12,23,7,4,-6]} 1. e4 {[%emt 0:00:04]} c5 {[%emt 0:00:03]} 2. Nf3 {[%emt 0:00:05]} Nc6 {[%emt 0:00:03]} 3. Bc4 {[%emt 0:00:07]} e6 {[%emt 0:01:01]} 4. O-O {[%emt 0:00:10]} Nf6 {[%emt 0:03:52]} 5. Re1 {[%emt 0:00:24]} d6 {[%emt 0:03:32]} 6. Nc3 {[%emt 0:02:35]} Be7 {[%emt 0:00:35]} 7. d4 {[%emt 0:00:17]} cxd4 {[%emt 0:00:04]} 8. Nxd4 {[%emt 0:00:05]} Bd7 {[%emt 0:00:35] B88: Sicilian: Sozin Attack.} 9. Be3 {[%emt 0:07:53]} O-O {[%emt 0:00:25]} 10. Bb3 {[%emt 0:04:00]} a6 {[%emt 0:00:29]} 11. f4 {[%emt 0:16:26] [#]} Nxd4 $146 {[%emt 0:01:33]} ({Predecessor:} 11... Rc8 12. Qf3 Qa5 13. h3 b5 14. a3 Nxd4 15. Bxd4 b4 16. axb4 Qxb4 17. Bf2 a5 {½-½ (59) Plat,V (2566)-Cerveny,M (2379) Ostrava 2018}) 12. Bxd4 {[%emt 0:02:54]} e5 {[%emt 0:00:31]} 13. Be3 {[%emt 0:03:56]} Bc6 {[%emt 0:12:30]} 14. Qf3 {[%emt 0:04:04]} b5 {[%emt 0:05:16]} 15. Rad1 {[%emt 0:05:06] An uneventful encounter.  Weighted Error Value: White=0.03 (flawless) /Black=0.03 (flawless)} 1/2-1/2

[Event "Reykjavik Open 2022"]
[Site "Reykjavik"]
[Date "2022.04.10"]
[Round "6.7"]
[White "Adhiban, B.."]
[Black "Grieve, Harry"]
[Result "1/2-1/2"]
[ECO "A04"]
[WhiteElo "2648"]
[BlackElo "2384"]
[Annotator "TA"]
[PlyCount "129"]
[EventDate "2022.04.06"]
[EventCountry "ISL"]
[SourceTitle "playchess.com"]
[Source "ChessBase"]
[SourceQuality "1"]
[TimeControl "40/5400+30:1800+30"]

{[%evp 9,129,18,35,37,42,35,48,12,20,6,18,6,8,-20,-34,-45,-39,-41,-28,-36,17,9,12,19,14,20,6,4,15,14,13,5,21,0,0,0,0,-8,-8,-8,-8,-8,-8,-8,-10,-24,0,-8,0,0,0,0,0,0,39,0,8,8,8,8,8,8,8,8,8,8,8,8,8,8,8,8,8,8,8,8,8,0,8,8,8,8,8,0,8,0,8,0,0,0,0,0,95,95,95,95,95,95,114,114,114,8,8,0,0,0,0,0,0,0,0,0,0,0,0,0,0,0,0,0,0,0]} 1. Nf3 {[%emt 0:02:23]} f5 {[%emt 0:01:40]} 2. d3 {[%emt 0:00:48]} Nc6 {[%emt 0:00:20]} 3. d4 {[%emt 0:00:14]} e6 {[%emt 0:00:19]} 4. c4 {[%emt 0:00:19]} Nf6 {[%emt 0:01:19]} 5. g3 {[%emt 0:04:29]} d5 {[%emt 0:00:58]} 6. Bg2 {[%emt 0:00:16] A04: Unusual lines after 1 Nf3 and King's Indian Attack.} Be7 {[%emt 0:00:54]} 7. O-O {[%emt 0:00:46]} Ne4 {[%emt 0:01:29] [#]} 8. b3 $146 {[%emt 0:00:21] White is slightly better.} ({Predecessor:} 8. Nc3 O-O 9. cxd5 exd5 10. Qb3 Kh8 11. Kh1 Bf6 12. Qxd5 Nxd4 13. Nxd4 Bxd4 14. Qxd8 Rxd8 15. Nxe4 fxe4 16. Bxe4 {1-0 (51) Howell,D (2676)-Williams,S (2461) Hastings 2020}) 8... a5 {[%emt 0:01:24]} 9. Ba3 {[%emt 0:01:59]} Bf6 {[%emt 0:02:09]} 10. e3 {[%emt 0:02:15]} h5 {[%emt 0:00:42]} 11. Nfd2 {[%emt 0:13:50]} h4 {[%emt 0:03:38]} 12. Nxe4 {[%emt 0:00:13]} dxe4 {[%emt 0:03:03]} 13. Nc3 {[%emt 0:01:23]} hxg3 {[%emt 0:04:34]} 14. fxg3 {[%emt 0:15:03][%cal Oc3e4]} Nxd4 {[%emt 0:28:24] [#]} 15. Nxe4 $1 $11 {[%emt 0:04:29]} fxe4 {[%emt 0:00:07]} 16. Qg4 {[%emt 0:09:21] Prevents Nf3+.} Kf7 $1 {[%emt 0:16:01][%cal Oe6e5] ...e5! is the strong threat.} 17. exd4 {[%emt 0:02:09]} (17. Bxe4 Nf5 18. Rad1 Qe8 $17) 17... Qxd4+ {[%emt 0:04:18]} 18. Kh1 {[%emt 0:00:04] The board is on fire.} e5 {[%emt 0:00:16]} 19. Qxe4 {[%emt 0:00:03]} Qxe4 {[%emt 0:02:22]} 20. Bxe4 {[%emt 0:00:02]} c6 {[%emt 0:00:45]} 21. h4 {[%emt 0:02:30]} Bg4 {[%emt 0:01:54]} 22. Kg2 {[%emt 0:18:21]} Rhd8 {[%emt 0:03:30]} 23. Rf2 {[%emt 0:02:29]} a4 {[%emt 0:01:50]} 24. Bb2 {[%emt 0:00:16]} axb3 {[%emt 0:01:05]} 25. axb3 {[%emt 0:00:11]} Rxa1 {[%emt 0:00:02]} 26. Bxa1 {[%emt 0:00:04]} Ke6 {[%emt 0:00:15]} 27. Bc3 {[%emt 0:02:05]} Be7 {[%emt 0:02:12]} 28. b4 {[%emt 0:02:20]} Rd1 {[%emt 0:03:43]} 29. Rd2 {[%emt 0:06:24]} Rc1 {[%emt 0:02:26]} 30. Rc2 {[%emt 0:00:10]} Rb1 {[%emt 0:04:00]} 31. b5 {[%emt 0:07:43]} cxb5 {[%emt 0:02:55]} 32. Rd2 {[%emt 0:00:07]} (32. Bxb7 $5 {[%cal Rb7c8]} b4 33. Bc8+ Kd6 34. Bxg4 bxc3 35. Rxc3 $14) 32... Rd1 {[%emt 0:05:34] aiming for ...Rxd2+.} 33. Bxb7 {[%emt 0:02:37] Hoping for Bc8+.} Rxd2+ {[%emt 0:01:30]} 34. Bxd2 {[%emt 0:00:04][%mdl 4096] Endgame Black must now prevent Bc8+. KBB-KBB} Be2 {[%emt 0:00:16]} 35. Bd5+ {[%emt 0:00:17]} Kd7 {[%emt 0:01:26]} 36. cxb5 {[%emt 0:00:17]} Bxb5 {[%emt 0:00:01]} 37. Kf3 {[%emt 0:00:14]} Bd3 {[%emt 0:00:28]} 38. Be4 {[%emt 0:02:01]} Bxe4+ {[%emt 0:00:01]} 39. Kxe4 {[%emt 0:00:07] KB-KB} Ke6 {[%emt 0:00:03]} 40. h5 {[%emt 0:00:00]} Bc5 {[%emt 0:00:00]} 41. g4 {[%emt 0:00:44]} (41. Bc3 $5 {[%cal Rc3e5]}) 41... Be7 {[%emt 0:04:29]} 42. Bc3 {[%emt 0:00:37]} Bd6 {[%emt 0:01:06]} 43. Bd2 {[%emt 0:01:02]} Be7 {[%emt 0:00:17]} 44. Bc1 {[%emt 0:00:06]} Bc5 {[%emt 0:00:49]} 45. g5 {[%emt 0:05:21]} Be7 {[%emt 0:00:32]} 46. Bd2 {[%emt 0:00:14]} Bd8 {[%emt 0:00:56]} 47. g6 {[%emt 0:00:24]} Be7 {[%emt 0:01:14]} 48. Bc3 {[%emt 0:00:28]} Bd6 {[%emt 0:00:08]} 49. Bb2 {[%emt 0:00:02]} Bc7 {[%emt 0:02:00]} 50. Ba3 {[%emt 0:01:02]} Bd8 {[%emt 0:00:08] [#]} (50... Kf6 $11 {keeps the balance.}) 51. Bd6 $1 $16 {[%emt 0:04:12]} Be7 {[%emt 0:12:52]} (51... Kxd6 52. h6 gxh6 53. g7 Bh4 54. g8=Q Kc5 55. Kxe5 Bg5 56. Qb3) (51... Bg5 52. Bxe5) 52. Bxe5 {[%emt 0:05:00]} (52. Bxe7 Kxe7 53. Kxe5 Ke8 $11) 52... Bf6 {[%emt 0:00:40]} 53. Bf4 {[%emt 0:00:17]} ({Much worse is} 53. Bxf6 $6 Kxf6 54. Ke3 Kg5 $11) 53... Ke7 {[%emt 0:05:55]} 54. Kf5 {[%emt 0:00:12] h6 would kill now.} ({Reject} 54. Be5 $6 Bxe5 55. Kxe5 Kf8 $11) 54... Kf8 {[%emt 0:02:33]} 55. h6 {[%emt 0:00:23]} (55. Bd6+ $16 Kg8 56. h6) 55... Kg8 $11 {[%emt 0:00:06] The position is equal.} 56. h7+ {[%emt 0:00:04]} Kh8 {[%emt 0:00:03]} 57. Bh6 {[%emt 0:00:07]} Bc3 {[%emt 0:00:12]} 58. Bf4 {[%emt 0:00:06]} Bd4 {[%emt 0:00:18]} 59. Bg5 {[%emt 0:00:06]} Bc3 {[%emt 0:00:10]} 60. Ke6 {[%emt 0:00:04]} Bd4 {[%emt 0:00:14]} 61. Kf7 {[%emt 0:00:02]} Bc3 {[%emt 0:00:08]} 62. Bf4 {[%emt 0:00:02]} Bd4 {[%emt 0:00:10]} 63. Bg5 {[%emt 0:00:06]} Bc3 {[%emt 0:00:05]} 64. Bf4 {[%emt 0:00:02]} Bd4 {[%emt 0:00:04]} 65. Bg5 {[%emt 0:00:03] Weighted Error Value: White=0.08 (flawless) /Black=0.08 (flawless)} 1/2-1/2